Cogmind - Beta 14 @@@ ROGUE MODE // 2025.02.28 @ 18:22:24 Player: Prakos Result: Self-destructed Performance ------------- Evolutions (2) 1000 Regions Visited (3) 600 Robots Destroyed (25) 125 Value Destroyed (678) 678 Prototype IDs (0) 0 Alien Tech Used (0) 0 Bonus (19) 19 TOTAL SCORE: 2422 Bonus ------- High Alert Combat Kills 19 Cogmind --------- Core Integrity 484/550 Matter 295/300 Energy 54/100 System Corruption 0% Temperature Cool (17) Movement Flying (35) Location -8/Materials Parts ------- > --- POWER (1) -------- (None) > --- PROPULSION (4) --- VTOL Module > --- UTILITY (4) ------ Visual Processing Unit Improved Sensor Array Signal Interpreter > --- WEAPON (2) ------- Medium Laser > --- INVENTORY (5) ---- Flight Unit Flight Unit Flight Unit Peak State ------------ > --- POWER ------------ Light Ion Engine > --- PROPULSION ------- Flight Unit Flight Unit Flight Unit VTOL Module > --- UTILITY ---------- Visual Processing Unit Improved Sensor Array Signal Interpreter > --- WEAPON ----------- Medium Laser Medium Laser > --- INVENTORY -------- Flight Unit Flight Unit Flight Unit [Rating: 14] Favorites ----------- Power Light Ion Engine Engine Light Ion Engine Power Core Light Nuclear Core Propulsion Aluminum Leg Leg Aluminum Leg Flight Unit Flight Unit Utility Small Storage Unit Device Sensor Array Storage Small Storage Unit Processor Signal Interpreter Weapon Assault Rifle Energy Gun EM Shotgun Ballistic Gun Assault Rifle Build | -11 -10 -9 -8 ------- Run | Yrd Mat Mat Mat Slots Evolved 4 | . . 2 2 Power . | . . . . Propulsion 2 | . . . 2 Utility 2 | . . 2 . Weapon . | . . . . Parts Attached 27 | 6 . 18 3 Power 4 | 1 . 3 . Engine 2 | 1 . 1 . Core 2 | . . 2 . Reactor . | . . . . Propulsion 9 | 2 . 5 2 Treads . | . . . . Leg 5 | 2 . 3 . Wheel . | . . . . Hover . | . . . . Flight 4 | . . 2 2 Utility 5 | 1 . 3 1 Device 2 | . . 1 1 Storage 1 | 1 . . . Processor 2 | . . 2 . Hackware . | . . . . Protection . | . . . . Artifact . | . . . . Weapon 9 | 2 . 7 . Energy Gun 4 | . . 4 . Energy Cannon . | . . . . Ballistic Gun 5 | 2 . 3 . Ballistic Cannon . | . . . . Launcher . | . . . . Special Weapon . | . . . . Impact Weapon . | . . . . Slashing Weapon . | . . . . Piercing Weapon . | . . . . Special Melee Weapon . | . . . . Unidentified Prototypes . | . . . . Parts Lost 14 | . . 9 5 Power 3 | . . 2 1 Propulsion 6 | . . 3 3 Utility . | . . . . Weapon 5 | . . 4 1 Highest Loss Streak 5 | . . 4 5 To Critical Strikes . | . . . . Average Slot Usage (%) 72 | . 85 69 85 Engine 5 | . 14 3 6 Core 5 | . . 6 . Leg 17 | . 28 17 . Flight 4 | . . 2 33 Device 1 | . . 1 9 Storage 9 | . 14 9 . Processor 6 | . . 6 18 Energy Gun 11 | . . 12 18 Ballistic Gun 11 | . 28 9 . Peak Build Rating 14 | 6 6 12 14 Average Rating 8 | 4 6 9 12 On Entrance 5 | . 6 6 9 Naked Turns . | . . . . Heaviest Build 16 | 12 12 16 8 Greatest Support 23 | 20 20 23 16 Greatest Overweight (x) 2 | 2 . 1 . Average Overweight (x) . | . . . . Largest Inventory Capacity 8 | 8 8 8 5 Average Capacity 7 | 6 8 7 5 Most Carried 8 | 2 4 8 4 Average Carried 5 | 1 2 6 3 Final Capacity 8 | 8 8 5 5 Final Carried 5 | 2 4 5 3 Class Distribution -------------------- 84% | Mutant 11% | Scout 4% | Scavenger-Scout Dominant Class ---------------- Mutant | -10/Materials Mutant | -9/Materials Scavenger-Scout | -8/Materials Resources | -11 -10 -9 -8 ----------- Run | Yrd Mat Mat Mat Matter Collected 548 | 265 55 228 . Remotely . | . . . . Salvage Created 993 | 73 90 830 . Parts 53 | 2 4 47 . Haulers Intercepted . | . . . . Recyclers Shooed . | . . . . Parts Field Recycled . | . . . . Retrieved Matter . | . . . . Parts Self-Destructed . | . . . . Prevented . | . . . . Kills | -11 -10 -9 -8 ------- Run | Yrd Mat Mat Mat Combat Hostiles Destroyed 22 | . 2 20 . Guns 21 | . 2 19 . Classes Destroyed 6 | 1 1 4 . Recycler 2 | 1 . 1 . Watcher 1 | . . 1 . Swarmer 8 | . . 8 . Grunt 8 | . 2 6 . Duelist 1 | . . 1 . Sentry 5 | . . 5 . Best Kill Streak 6 | 1 2 6 . Combat Bots Only 6 | . 2 6 . Max Kills in Single Turn 2 | 1 1 2 . Gunslinging . | . . . . Exploded . | . . . . Melee . | . . . . Uniques/NPCs Destroyed . | . . . . Combat | -11 -10 -9 -8 -------- Run | Yrd Mat Mat Mat Hostile Shots Fired 157 | . 11 120 26 Missed 48 | . 1 32 15 Damage Taken 1407 | . 140 1050 217 Core 281 | . 56 159 66 Absorbed by Shields . | . . . . Regen/Repaired (Parts) 32 | . . 32 . Core Remaining (%) 79 | 100 77 60 . Volleys Fired 68 | 2 8 54 4 Largest 2 | 2 2 2 2 Hottest 100 | 40 40 100 100 Shots Fired 135 | 4 16 107 8 Gun 135 | 4 16 107 8 Cannon . | . . . . Launcher . | . . . . Special . | . . . . Kinetic 51 | 4 16 31 . Thermal 55 | . . 47 8 Explosive . | . . . . Electromagnetic 29 | . . 29 . Robot Hit Streak 15 | 3 4 15 1 Robot Miss Streak 4 | . 2 4 3 Penetration Max . | . . . . Secondary Targets 3 | . 1 2 . Max Gunslinging Chain 1 | . 1 1 . Shots Hit Robots 94 | 3 12 76 3 Core Hits 48 | 2 5 40 1 Critical Kills . | . . . . Critical Parts Destroyed . | . . . . Critical Strikes 3 | . . 3 . Burn 3 | . . 3 . Melee Attacks . | . . . . Impact . | . . . . Slashing . | . . . . Piercing . | . . . . Sneak Attacks . | . . . . Combat Hostiles . | . . . . Follow-up Attacks . | . . . . Damage Inflicted 1259 | 37 166 1019 37 Guns 1259 | 37 166 1019 37 Cannons . | . . . . Explosions . | . . . . Melee . | . . . . Ramming . | . . . . Kinetic 514 | 37 166 311 . Thermal 437 | . . 400 37 Explosive . | . . . . Electromagnetic 308 | . . 308 . Impact . | . . . . Slashing . | . . . . Piercing . | . . . . Highest Corruption . | . . . . Average Corruption . | . . . . Corruption Purged . | . . . . Corruption Blocked . | . . . . Overload Shots . | . . . . Overflow Damage . | . . . . Projectiles . | . . . . Explosions . | . . . . Melee . | . . . . Knockbacks . | . . . . Impact . | . . . . Kinetic . | . . . . Secondary . | . . . . Self-Inflicted Damage . | . . . . Shots . | . . . . Rammed . | . . . . Targets Rammed . | . . . . Kicked . | . . . . Crushed . | . . . . Highest Temperature 321 | . 2 321 97 Average Temperature 93 | . 2 102 43 Received Heat Transfer 450 | . 84 321 45 Effects 1 | . . 1 . Energy Bleed 1 | . . 1 . Siege Activations . | . . . . Robots Corrupted . | . . . . Combat Hostiles . | . . . . Parts Fried . | . . . . Impact Corruptions . | . . . . Robots Melted 1 | . . 1 . Combat Hostiles 1 | . . 1 . Parts Melted 4 | . . 4 . Heat Transferred 1517 | . . 1406 111 Parts Sabotaged . | . . . . Parts Stolen . | . . . . Parts Stripped . | . . . . Power Chain Reactions . | . . . . Alert | -11 -10 -9 -8 ------- Run | Yrd Mat Mat Mat Peak Influence 421 | 5 65 421 252 Initial 177 | . 3 27 177 Average 131 | 2 39 152 215 Maximum Alert Level 2 | . . 2 1 Low Security (%) 79 | 100 100 81 10 Level 1 17 | . . 14 89 Level 2 2 | . . 3 . Level 3 . | . . . . Level 4 . | . . . . Level 5 . | . . . . High Security . | . . . . Max Security . | . . . . Squads Dispatched 2 | . . . 2 Investigation 1 | . . . 1 Extermination . | . . . . Reinforcement 1 | . . . 1 Assault . | . . . . Garrison . | . . . . Intercept . | . . . . Searches Triggered . | . . . . Construction Impeded . | . . . . Haulers Reinforced . | . . . . Active Scanning Responses . | . . . . Cargo Convoy Interrupts . | . . . . Stealth | -11 -10 -9 -8 --------- Run | Yrd Mat Mat Mat Distress Signals 4 | . . 4 . Communications Jammed . | . . . . Distress Signals . | . . . . Times Spotted 42 | . 3 25 14 Peak Tracking Total 12 | . 3 8 12 Tactical Retreats 5 | . . 4 1 Traps | -11 -10 -9 -8 ------- Run | Yrd Mat Mat Mat Traps Triggered 1 | . . 1 . Indirectly . | . . . . Trap Hack Attempts . | . . . . Triggered . | . . . . Disarmed . | . . . . Reprogrammed . | . . . . Reused . | . . . . Traps Extracted . | . . . . Installed . | . . . . Triggered . | . . . . Machines | -11 -10 -9 -8 ---------- Run | Yrd Mat Mat Mat Machines Disabled . | . . . . Max in Single Turn . | . . . . Machines Repaired . | . . . . Machines Dismantled . | . . . . Machines Sabotaged . | . . . . Overloaded Fab Kills . | . . . . Hacking | -11 -10 -9 -8 --------- Run | Yrd Mat Mat Mat Machines Accessed 12 | . 4 4 4 Terminals 10 | . 4 3 3 Fabricators . | . . . . Repair Stations 1 | . . 1 . Recycling Units 1 | . . . 1 Scanalyzers . | . . . . Garrison Access . | . . . . Total Hacks 31 | . 9 12 10 Successful 9 | . 3 3 3 Failed 22 | . 6 9 7 Catastrophic 4 | . . 3 1 Database Lockouts . | . . . . Manual 21 | . 8 5 8 Terminals 25 | . 9 8 8 Fabricators . | . . . . Repair Stations 4 | . . 4 . Recycling Units 2 | . . . 2 Scanalyzers . | . . . . Garrison Access . | . . . . Terminal Hacks 1 | . 1 . . Part Schematic 1 | . 1 . . Fabricator Hacks . | . . . . Repair Station Hacks 2 | . . 2 . Scan Component 1 | . . 1 . Repair 1 | . . 1 . Recycling Unit Hacks 1 | . . . 1 Retrieve Components 1 | . . . 1 Scanalyzer . | . . . . Garrison Access Hacks . | . . . . Unauthorized Hacks 5 | . 2 1 2 Terminals 5 | . 2 1 2 Assimilate 1 | . . . 1 Botnet 4 | . 2 1 1 Fabricators . | . . . . Repair Stations . | . . . . Recycling Units . | . . . . Scanalyzers . | . . . . Garrison Access . | . . . . Data Cores Recovered . | . . . . Used . | . . . . Hacking Detections 10 | . 4 3 3 Full Trace Events 1 | . . . 1 Feedback Events . | . . . . Feedback Blocked . | . . . . Robot Schematics Acquired . | . . . . Robots Built . | . . . . Authchips . | . . . . Time . | . . . . Total Robot Build Rating . | . . . . Part Schematics Acquired 1 | . 1 . . Parts Built . | . . . . Authchips . | . . . . Time . | . . . . Total Part Build Rating . | . . . . Parts Repaired 1 | . . 1 . Time 38 | . . 38 . Parts Recycled . | . . . . Recycled Matter . | . . . . Retrieved Matter . | . . . . Retrieved Components . | . . . . Parts Scanalyzed . | . . . . Part Schematics Acquired . | . . . . Parts Damaged . | . . . . Bothacking | -11 -10 -9 -8 ------------ Run | Yrd Mat Mat Mat Used RIF Installer . | . . . . Robots Hacked . | . . . . Non-combat . | . . . . Combat . | . . . . Robot Hacks Applied . | . . . . Relay Couplers Released . | . . . . Fabnet Peak Effective % . | . . . . Robots Rewired . | . . . . Allies Hacked . | . . . . Hacks Repelled . | . . . . Allies | -11 -10 -9 -8 -------- Run | Yrd Mat Mat Mat Total Allies . | . . . . Largest Group . | . . . . Highest-Rated Group . | . . . . Highest-Rated Ally . | . . . . Total Orders . | . . . . Ally Attacks . | . . . . Total Damage . | . . . . Kills . | . . . . Allies Corrupted . | . . . . Allies Melted . | . . . . Intel | -11 -10 -9 -8 ------- Run | Yrd Mat Mat Mat Robot Analysis Total . | . . . . Derelict Logs Recovered . | . . . . Drone Launches . | . . . . Drone Recoveries . | . . . . Exploration | -11 -10 -9 -8 ------------- Run | Yrd Mat Mat Mat Turns Passed 1045 | 68 143 755 79 Spaces Moved 786 | 44 94 448 200 Core 10 | 10 . . . Treads . | . . . . Legs 464 | 34 94 336 . Wheels . | . . . . Hover . | . . . . Flight 312 | . . 112 200 Fastest Speed 29 | 50 120 37 29 Average Speed 88 | 117 120 105 29 Slowest Speed 190 | 150 120 190 32 Overloaded Moves . | . . . . Propulsion Burnouts . | . . . . Robots Hopped 5 | . . . 5 Cave-ins Triggered . | . . . . Exploration Rate (%) 27 | 3 27 41 38 Regions Visited 3 Branch Regions . Pre-discovered Areas . | . . . . Known Exits Taken 1 | . . 1 . Unknown Exits Taken 2 | 1 1 . . Scrap Searched . | . . . . Spaces Dug . | . . . . Terrain Destroyed . | . . . . Melee . | . . . . Projectile . | . . . . AOE . | . . . . Terrain Rammed . | . . . . Walls Destroyed . | . . . . Machines Disabled . | . . . . Actions | -11 -10 -9 -8 --------- Run | Yrd Mat Mat Mat Total 989 | 53 108 622 206 Wait 92 | . 5 84 3 Move 773 | 43 93 447 190 Hop 5 | . . . 5 Pick Up 14 | 2 2 10 . Fast Attach 14 | 6 . 7 1 Attach 10 | . . 8 2 Detach 2 | . . 2 . Swap 3 | . . 3 . Drop 8 | . . 7 1 Fire 68 | 2 8 54 4 Melee . | . . . . Ram . | . . . . Kick . | . . . . Crush . | . . . . Escape Stasis . | . . . . Rewire . | . . . . Trap . | . . . . Miscellaneous . | . . . . Route ------- -11/Scrapyard -10/Materials (discovered 2 exits: *Mat / [*Min]) -9/Materials -8/Materials (discovered 1 exit: [*Fac]) History --------- Turn | Location | Event 33 | -11/Scrapyard | Discovered new exit (range 15) 69 | -11/Scrapyard | Entered Materials 189 | -10/Materials | Discovered new exit (range 6) 198 | -10/Materials | Discovered new exit (range 12) 212 | -10/Materials | Entered another Materials area 212 | -9/Materials | Evolved 2 slots: Utility x2 318 | -9/Materials | Build established: Mutant 734 | -9/Materials | Repaired Lgt. Nuclear Core 863 | -9/Materials | Lost 4 parts (1p1n2w) 966 | -9/Materials | Discovered new exit (range 5) 967 | -9/Materials | Identified exit to Materials 967 | -9/Materials | Entered another Materials area 967 | -8/Materials | Evolved 2 slots: Propulsion x2 1026 | -8/Materials | Discovered new exit (range 13) 1046 | -8/Materials | Self-destructed Last Messages --------------- 01018_ Dropped Sensor Array. 01018_ Acquired Imp. Sensor Array. 01020_ Connecting with Terminal... 01023_ ALERT: Suspicious intruders detected, dispatching Cutter reinforcements to area. 01026_ EXIT=FOUND 01026_ Lgt. Ion Engine destroyed. 01026_ Knocked back. 01028_ C-17 Slicer knocked back. 01028_ Flight Unit destroyed. 01028_ Knocked back. 01032_ Processing Tank disabled. 01032_ T-07 Excavator is excavating. 01038_ M-13 Machinist repairs C-17 Slicer. 01039_ T-07 Excavator is excavating. 01043_ C-17 Slicer destroyed. 01043_ T-07 Excavator is excavating. 01044_ Med. Laser destroyed. 01044_ K-01 Serf collects debris. 01046_ Flight Unit destroyed. Map ----- +----------------------------------------------------+ | | | | | | | ?????????????????????????????????????????????????? | | ?????????????????????????????????????????????????? | | ?????????????????????????????????????????????????? | | ?????????????????????????????????????????????????? | | ?????????????????????????????????????????????????? | | ?????????????????????????????????????????????????? | | ?????????????????????????????????????????????????? | | ?????????????????????????????????????????????????? | | ?????????????????????????????????????????????????? | | ????????????????????????????????????????????????## | | ??????????????????????????????????####??????????# | | ????????????????????????????? ???? #??????????# | | ????????????????????????????# ?"" #??????????# | | ????????????????????????????# """ #######????# | | ????????????????????????????# """ # #????# | | ????????????????????????????# # x"""#????# | | ????????????????????????????# """ [# """#???## | | ????????????????????????????#! """ # """#??? # | | ????????????????????????????? """ # #???? | | ??????????????????????????????? ?# ! #????# | | ????????????????????# ????????###"#### ??????# | | ????????????????????+ ####### ###/######### | | ????????????????????# @ !c kg | | ????????????????????# c Y | | ????????????????????# | | ????????????????????##t######## ############# | | ????????????????????# ???????## ##???????????# | | ????????????????????##?????????# #????????????# | | ???????????????????????????????# #????????????# | | ???????????????????????????????# #????????????# | | ???????????????????????????????# #????????????# | | ???????????????????????????????# #??########??# | | ???????????????#???????????????# #??#] ?# | | ??????????????? ???????????????# #### ?# | | ??????????????? ???????????????# #""" # | | ??????????????? ???????????????# #"R # | | ?????????????? #??????????????+ #""" + | | ?????????????? ??????????????# #??# """ """ # | | ?????????# ??? #??????????????? #????""" """ ## | | ########## """ ########?????????????????"" """??# | | ]# # """ # #?????????????????######??# | | # """" # # #?????????????????????????# | | # """" # # #########?????????????????# | | # """" # "T" # [ ## #?????????????????# | | # # """ ?? ## #????????????????## | | #? [?? ????? ## # ???????????## | | ######+######+######+#+## ] / # #??????????# | +----------------------------------------------------+ Best States ------------- Heat Dissipation 31 Energy Generation 14 Energy Capacity 160 Matter Stores 300 Matter Capacity 300 Sight Range 18 Robot Scan Range 15 Terrain Scan Density 10 Evasion (%) 64 Item Schematics ----------------- Flight Unit | -10/Materials | Hacked Robot Schematics ------------------ None Fabricated ------------ Nothing Alien Tech Used ----------------- None Achievements -------------- None Challenges ------------ None Game ------ Seed ScrapNuclearScythe Manual? 0 Play Time 00:20:00 Cumulative 39.7 hours Start 2025.02.28 @ 18:03:47 End 2025.02.28 @ 18:22:24 Sessions 1 Manual Loads 0 Difficulty Rogue Special Mode None Game No. 28 Rogue 28 Adventurer 0 Explorer 0 Win Type - Total 0 Types 0/0/0/0/0/0/0/0/0 Lore% 14 Gallery% 25 Achievement% 24 Wizard Run 0 Options --------- Layout 1 ASCII 0 Keyboard 0 Movement Mouse Keybinds 0 Fullscreen 1 Font 24/Smallcaps Map View 50x35 Zoom Use 0% Tactical HUD 1 Map Filters NONE Filters NONE Steam 1 RUN: 20e67d3f-5d0a-463c-87da-58df9f034169